Workbook

Sheet Setup
A1: ΤΟΥΡΝΟΥΑ 32άρι ταμπλό | D1: Θέσεις | E1: seed | H1: 0 | I1: seed | J1: space pos | K1: Index | L1: Value
D2: 3-4 | E2: =VALUE(LEFT(F2,1)) -> 4 | F2: 4 3 | H2: =IF(I2="-","-",IF(I2>0,H1+1,0)) -> 0 | I2: =IF(J2>0,VALUE(MID($A$32,1,J2-1)),"-") -> 0 | J2: =IF(LEN($A$32)>1,FIND(" ",$A$32,1),0) -> 2 | K2: 0 | L2: 0
A3: Διοργανωτής: | B3: Α΄ ΕΝΩΣΗ | E3: =VALUE(RIGHT(F2,1)) -> 3 | H3: 0 | I3: =IF(J3>0,VALUE(MID($A$32,J2+1,J3-J2-1)),"-") -> 0 | J3: =IF(AND(J2>0,LEN($A$32)>J2+1),FIND(" ",$A$32,J2+1),0) -> 4 | K3: 0 | L3: 0
A4: Τίτλος Τουρνουά: | B4: 1ο Ε3 | D4: Θέσεις | E4: seed | H4: 0 | I4: 0 | J4: 6 | K4: 0 | L4: 0
D5: 5-8 | E5: =TRIM(LEFT(F5,(FIND(" ",F5,1)-1))) -> 6 | F5: 6 7 5 8 | H5: 0 | I5: 0 | J5: 8 | K5: 0 | L5: 0
A6: Έδρα αγώνων: | E6: =TRIM(MID(F5,(FIND(" ",F5,1)),FIND(" ",F5,(FIND(" ",F5,1)+1))-(FIND(" ",F5,1)))) -> 7 | H6: 0 | I6: 0 | J6: 10 | K6: 0 | L6: 0
A7: Κατηγορίες: | B7: Α12 | E7: =TRIM(MID(F5, (FIND(" ",F5,(FIND(" ",F5,1)+1))+1), (FIND(" ",F5,(FIND(" ",F5,(FIND(" ",F5,1)+1))+1)))-(FIND(" ",F5,(FIND(" ",F5,1)+1))+1))) -> 5 | H7: 0 | I7: 0 | J7: 12 | K7: 0 | L7: 0
A8: Έναρξη: | B8: 15 | E8: =TRIM(RIGHT(F5,LEN(F5)-(FIND(" ",F5,(FIND(" ",F5,(FIND(" ",F5,1)+1))+1))))) -> 8 | H8: 0 | I8: 0 | J8: 14 | K8: 0 | L8: 0
A9: Λήξη: | B9: 16 ΜΑΡ 2014 | H9: 0 | I9: 0 | J9: 16 | K9: 0 | L9: 0
A10: Επιδιατητής: | B10: ΠΕΤΡΙΔΗΣ ΜΑΝΟΣ | H10: 0 | I10: 0 | J10: 18 | K10: 0 | L10: 0
A11: Τηλέφωνο επιδ: | H11: 0 | I11: =IF(J11>0,VALUE(MID($A$32,J10+1,J11-J10-1)),"-") -> 0 | J11: 20 | K11: 0 | L11: 0
H12: =IF(I12="-","-",IF(I12>0,H11+1,0)) -> 0 | I12: 0 | J12: 22 | K12: 0 | L12: 0
H13: 1 | I13: 1 | J13: 24 | K13: 1 | L13: 1
H14: 2 | I14: 2 | J14: 26 | K14: 2 | L14: 2
H15: 3 | I15: 3 | J15: 28 | K15: 3 | L15: 3
H16: 4 | I16: 4 | J16: 30 | K16: 4 | L16: 4
B17: ="("&COUNTBLANK(DrawPrep!D3:D34)&")" -> (11) | H17: 5 | I17: 5 | J17: 32 | K17: 5 | L17: 5
A18: Πλήθος bye (0-15): | B18: =COUNTBLANK(DrawPrep!D3:D34) -> 11 | H18: 6 | I18: 6 | J18: 34 | K18: 6 | L18: 6
A19: Αριθμός θέσεων seeded: | B19: 8 | H19: 7 | I19: 7 | J19: 36 | K19: 7 | L19: 7
H20: 8 | I20: 8 | J20: 38 | K20: 8 | L20: 8
A21: All - Seeded - NoSeeded: | B21: =CONCATENATE(32-$B$18," - ",$B$19," - ",32-$B$19-$B$18) -> 21 - 8 - 13 | H21: 9 | I21: 11 | J21: 41 | K21: 9 | L21: 11
H22: 10 | I22: 13 | J22: 44 | K22: 10 | L22: 13
H23: 11 | I23: 17 | J23: 47 | K23: 11 | L23: 17
A24: md (# για off) | B24: ok | H24: 12 | I24: 21 | J24: 50 | K24: 12 | L24: 21
H25: 13 | I25: 14 | J25: 53 | K25: 13 | L25: 14
A26: =RandUniq(3,4,2) ->  | H26: 14 | I26: 15 | J26: 56 | K26: 14 | L26: 15
A27: =RandUniq(5,8,4) ->  | H27: 15 | I27: 16 | J27: 59 | K27: 15 | L27: 16
H28: 16 | I28: 19 | J28: 62 | K28: 16 | L28: 19
A29: =CONCATENATE(LEFT($A$34,$B$18*2),LEFT($A$33,$B$19*2),RandUniq($B$19+1,32-$B$18,32-$B$19-$B$18)," ") ->  | H29: 17 | I29: 10 | J29: 65 | K29: 17 | L29: 10
H30: 18 | I30: 20 | J30: 68 | K30: 18 | L30: 20
H31: 19 | I31: 12 | J31: 71 | K31: 19 | L31: 12
A32: 0 0 0 0 0 0 0 0 0 0 0 1 2 3 4 5 6 7 8 11 13 17 21 14 15 16 19 10 20 12 9 18 | H32: 20 | I32: 9 | J32: 73 | K32: 20 | L32: 9
A33: 1 2 3 4 5 6 7 8 | H33: 21 | I33: 18 | J33: 76 | K33: 21 | L33: 18
A34: 0 0 0 0 0 0 0 0 0 0 0 0 0 0 0 0 0 0 0 0 0 0 0 0 0 0 0 0 0 0 0 0 0 0 0 0 0 0 0 0

Sheet DrawPrep
A1: =Setup!$B$3 & ", " & Setup!$B$4 & ", " & Setup!$B$6 & ", " & Setup!$B$8 & "-" & Setup!$B$9 -> Α΄ ΕΝΩΣΗ, 1ο Ε3, , 15-16 ΜΑΡ 2014 | H1: =Setup!B7 -> Α12
A2: α/α | B2: από | C2: Α.Μ. | D2: Ονοματεπώνυμο | E2: Σύλλογος | F2: βαθμοί | G2: Τηλέφωνο | H2: Υπογραφή | I2: SortPts | J2: Rnd
A3: 1 | C3: 30766 | D3: ΤΕΡΛΕΜΕΣ ΚΩΝΣΤΑΝΤΙΝΟΣ | E3: Πανθρακικός ΟΑ Κομοτην | F3: 57.5 | I3: =IF(D3>" ",F3+J3,0) -> 57.50096519 | J3: 0.0009651864328
A4: 2 | C4: 30999 | D4: ΠΑΦΗΣ ΚΩΝΣΤΑΝΤΙΝΟΣ | E4: Πανθρακικός ΟΑ Κομοτην | F4: 51 | I4: 51.0025467 | J4: 0.002546695297
A5: 3 | C5: 31428 | D5: ΚΩΣΤΙΔΗΣ ΗΛΙΑΣ | E5: ΣΕΡΑΪΚΟΣ Ο.Α | F5: 15.5 | I5: 15.50270782 | J5: 0.002707824371
A6: 4 | C6: 33325 | D6: ΤΣΑΤΣΟΥΛΗΣ ΑΘΑΝΑΣΙΟΣ | E6: Ο.Α.ΞΑΝΘΗΣ | F6: 15.5 | I6: 15.50245031 | J6: 0.00245030854
A7: 5 | C7: 31426 | D7: ΠΑΠΑΝΙΚΟΣ ΑΛΚΙΒΙΑΔΗΣ | E7: Σ.Α.ΣΕΡΡΩΝ | F7: 15.5 | I7: 15.50068629 | J7: 0.0006862909395
A8: 6 | C8: 33289 | D8: ΒΛΑΧΟΣ ΚΩΝ/ΝΟΣ | E8: Σ.Α.ΣΕΡΡΩΝ | F8: 12.5 | I8: 12.50446637 | J8: 0.004466367578
A9: 7 | C9: 29066 | D9: ΚΟΥΣΟΥΝΑΔΗΣ ΘΕΟΔΩΡΟΣ | E9: ΜΑΚΕΔΟΝΙΚΟΣ | F9: 8 | I9: 8.000850194 | J9: 0.000850194416
A10: 8 | C10: 30767 | D10: ΤΡΙΑΝΤΑΦΥΛΛΙΔΗΣ ΑΒΡΑΑΜ | E10: Πανθρακικός ΟΑ Κομοτην | F10: 5.5 | I10: 5.502340436 | J10: 0.002340436268
A11: 9 | C11: 33107 | D11: ΚΑΛΠΑΤΖΙΔΗΣ ΗΡΑΚΛΗΣ | E11: ΣΕΡΑΪΚΟΣ Ο.Α | F11: 5.5 | I11: 5.501885079 | J11: 0.001885078858
A12: 10 | C12: 33558 | D12: ΒΑΣΙΛΕΙΑΔΗΣ ΙΩΑΝΝΗΣ | E12: Πανθρακικός ΟΑ Κομοτην | F12: 4.5 | I12: 4.503179966 | J12: 0.003179966101
A13: 11 | C13: 34543 | D13: ΧΑΡΑΛΑΜΠΙΔΗΣ ΘΕΟΦΙΛΟΣ | E13: ΤΙΤΑΝΕΣ-ΝΕΑΣ ΠΕΡΑΜΟΥ | F13: 4 | I13: 4.003254831 | J13: 0.003254830946
A14: 12 | C14: 33503 | D14: ΚΟΒΑΝΙΔΗΣ ΠΕΡΙΚΛΗΣ | E14: Α.Ο.Α.ΑΛΕΞΑΝ/ΛΗΣ | F14: 3.5 | I14: 3.503074082 | J14: 0.003074082478
A15: 13 | C15: 31344 | D15: ΠΑΠΑΧΑΡΑΛΑΜΠΙΔΗΣ ΠΑΡΑΣΚΕΥΑΣ | E15: ΤΙΤΑΝΕΣ-ΝΕΑΣ ΠΕΡΑΜΟΥ | F15: 3.5 | I15: 3.502751285 | J15: 0.002751285478
A16: 14 | C16: 35176 | D16: ΖΕΡΒΙΔΗΣ ΑΝΤΩΝΙΟΣ | E16: Σ.Α.ΣΕΡΡΩΝ | F16: 1.5 | I16: 1.503040309 | J16: 0.003040309433
A17: 15 | C17: 33472 | D17: ΠΑΠΑΝΔΡΟΥΔΗΣ ΜΙΛΤΙΑΔΗΣ | E17: Α.Ο.Α.ΑΛΕΞΑΝ/ΛΗΣ | F17: 1.5 | I17: 1.502350925 | J17: 0.002350925195
A18: 16 | C18: 34118 | D18: ΚΗΤΖΙΔΗΣ ΣΠΥΡΙΔΩΝΑΣ | E18: Πανθρακικός ΟΑ Κομοτην | F18: 0 | I18: 0.003077696554 | J18: 0.003077696554
A19: 17 | C19: 34765 | D19: ΙΑΚΩΒΑΚΗΣ ΤΗΛΕΜΑΧΟΣ | E19: Α.Ο.Α.ΑΛΕΞΑΝ/ΛΗΣ | F19: 0 | I19: 0.0021577406 | J19: 0.0021577406
A20: 18 | C20: 33104 | D20: ΠΥΡΙΝΗΣ ΒΑΣΙΛΕΙΟΣ | E20: ΣΕΡΑΪΚΟΣ Ο.Α | F20: 0 | I20: 0.002108252305 | J20: 0.002108252305
A21: 19 | C21: 27139 | D21: ΔΡΟΣΟΣ ΒΑΣΙΛΕΙΟΣ | E21: Α.Ο.ΧΡΥΣΟΥΠΟΛΗΣ | F21: 0 | I21: 0.001553368828 | J21: 0.001553368828
A22: 20 | C22: 35638 | D22: ΧΑΤΖΗΧΡΗΣΤΟΣ ΑΛΕΞΑΝΔΡΟΣ | E22: Σ.Α.ΣΕΡΡΩΝ | F22: 0 | I22: 0.001320356734 | J22: 0.001320356734
A23: 21 | C23: 34931 | D23: ΨΑΡΟΥΔΑΚΗΣ ΒΑΣΙΛΗΣ | E23: ΜΑΚΕΔΟΝΙΚΟΣ | F23: 0 | I23: 0.001306965734 | J23: 0.001306965734
A24: 22 | I24: 0 | J24: 0.003214365062
A25: 23 | I25: 0 | J25: 0.001072620078
A26: 24 | I26: 0 | J26: 0.001421618353
A27: 25 | I27: 0 | J27: 0.002326325802
A28: 26 | I28: 0 | J28: 0.002595993611
A29: 27 | I29: 0 | J29: 0.004077493321
A30: 28 | I30: 0 | J30: 0.00393609851
A31: 29 | I31: 0 | J31: 0.0005787633847
A32: 30 | I32: 0 | J32: 0.0007136083976
A33: 31 | I33: 0 | J33: 0.002026432932
A34: 32 | I34: 0 | J34: 0.0003472754771
B37: Walk over | E37: med
B38: α/α | C38: Α.Μ. | D38: Ονοματεπώνυμο | E38: Ν ή Ο | H38: =Setup!$B$10 -> ΠΕΤΡΙΔΗΣ ΜΑΝΟΣ
B39: 1
B40: 2
B41: 3
B42: 4
B43: 5

Sheet Draw
A1: =Setup!B3 & ", " & Setup!B4 & ", " & Setup!B6 & ", " & Setup!B8 & "-" & Setup!B9 -> Α΄ ΕΝΩΣΗ, 1ο Ε3, , 15-16 ΜΑΡ 2014 | T1: =Setup!B7 -> Α12
B2: =Setup!B18 -> 11
J3: 32 | N3: 16 | P3: 8 | R3: 4 | T3: 2 & w
A4: α/α | C4: ByeOrder | D4: ByeSum | E4: ByeCnt | F4: από | G4: seed | H4: Pts | I4: Α.Μ. | J4: Ονοματεπώνυμο | K4: επώνυμο | L4: Σύλλογος
A5: 1 | B5: 1 | E5: 0 | F5: =IF(NOT($G5="-"),VLOOKUP($G5,DrawPrep!$A$3:$F$34,2,FALSE),"") -> 0 | G5: 1 | H5: =IF($G5>0,VLOOKUP($G5,DrawPrep!$A$3:$F$34,6,FALSE),0) -> 57.5 | I5: =IF(Setup!$B$24="#",0,IF($G5>0,VLOOKUP($G5,DrawPrep!$A$3:$F$34,3,FALSE),0)) -> 30766 | J5: =IF($I5>0,VLOOKUP($I5,DrawPrep!$C$3:$F$34,2,FALSE),"bye") -> ΤΕΡΛΕΜΕΣ ΚΩΝΣΤΑΝΤΙΝΟΣ | K5: =IF($I5>0,LEFT(J5,FIND(" ",J5)-1),"") -> ΤΕΡΛΕΜΕΣ | L5: =IF($I5>0,VLOOKUP($I5,DrawPrep!$C$3:$F$34,3,FALSE),"") -> Πανθρακικός ΟΑ Κομοτην | M5: 1 | N5: =UPPER(IF($A$2="R",IF(OR(M5=1,M5="a"),I5,IF(OR(M5=2,M5="b"),I6,"")),IF(OR(M5=1,M5="1"),K5,IF(OR(M5=2,M5="b"),K6,"")))) -> ΤΕΡΛΕΜΕΣ
A6: 2 | B6: =1-D6+8 -> 8 | C6: =B5 -> 1 | D6: =E6 -> 1 | E6: =IF($B$2>=C6,1,0) -> 1 | F6: =IF(NOT($G6="-"),VLOOKUP($G6,DrawPrep!$A$3:$F$34,2,FALSE),"") ->  | G6: =IF($B$2>=C6,"-",VLOOKUP($B6,Setup!$K$2:$L$33,2,FALSE)) -> - | H6: =IF(NOT($G6="-"),VLOOKUP($G6,DrawPrep!$A$3:$F$34,6,FALSE),0) -> 0 | I6: =IF(Setup!$B$24="#",0,IF(NOT($G6="-"),VLOOKUP($G6,DrawPrep!$A$3:$F$34,3,FALSE),0)) -> 0 | J6: =IF($I6>0,VLOOKUP($I6,DrawPrep!$C$3:$F$34,2,FALSE),"bye") -> bye | K6: =IF($I6>0,LEFT(J6,FIND(" ",J6)-1),"") ->  | L6: =IF($I6>0,VLOOKUP($I6,DrawPrep!$C$3:$F$34,3,FALSE),"") ->  | O6: 1 | P6: =UPPER(IF($A$2="R",IF(OR(O6=1,O6="a"),N5,IF(OR(O6=2,O6="b"),N7,"")),IF(OR(O6=1,O6="a"),N5,IF(OR(O6=2,O6="b"),N7,"")))) -> ΤΕΡΛΕΜΕΣ
A7: 3 | B7: =2-D7+8 -> 9 | D7: =D6+E7 -> 1 | E7: 0 | F7: =IF(NOT($G7="-"),VLOOKUP($G7,DrawPrep!$A$3:$F$34,2,FALSE),"") -> 0 | G7: 18 | H7: =IF($G7>0,VLOOKUP($G7,DrawPrep!$A$3:$F$34,6,FALSE),0) -> 0 | I7: =IF(Setup!$B$24="#",0,IF($G7>0,VLOOKUP($G7,DrawPrep!$A$3:$F$34,3,FALSE),0)) -> 33104 | J7: =IF($I7>0,VLOOKUP($I7,DrawPrep!$C$3:$F$34,2,FALSE),"bye") -> ΠΥΡΙΝΗΣ ΒΑΣΙΛΕΙΟΣ | K7: =IF($I7>0,LEFT(J7,FIND(" ",J7)-1),"") -> ΠΥΡΙΝΗΣ | L7: =IF($I7>0,VLOOKUP($I7,DrawPrep!$C$3:$F$34,3,FALSE),"") -> ΣΕΡΑΪΚΟΣ Ο.Α | M7: 2 | N7: =UPPER(IF($A$2="R",IF(OR(M7=1,M7="a"),I7,IF(OR(M7=2,M7="b"),I8,"")),IF(OR(M7=1,M7="a"),K7,IF(OR(M7=2,M7="b"),K8,"")))) -> ΔΡΟΣΟΣ | P7: 40 40
A8: 4 | B8: =3-D8+8 -> 10 | C8: 15 | D8: =D7+E8 -> 1 | E8: =IF($B$2>=C8,1,0) -> 0 | F8: =IF(NOT($G8="-"),VLOOKUP($G8,DrawPrep!$A$3:$F$34,2,FALSE),"") -> 0 | G8: 19 | H8: =IF(NOT($G8="-"),VLOOKUP($G8,DrawPrep!$A$3:$F$34,6,FALSE),0) -> 0 | I8: =IF(Setup!$B$24="#",0,IF(NOT($G8="-"),VLOOKUP($G8,DrawPrep!$A$3:$F$34,3,FALSE),0)) -> 27139 | J8: =IF($I8>0,VLOOKUP($I8,DrawPrep!$C$3:$F$34,2,FALSE),"bye") -> ΔΡΟΣΟΣ ΒΑΣΙΛΕΙΟΣ | K8: ΔΡΟΣΟΣ | L8: =IF($I8>0,VLOOKUP($I8,DrawPrep!$C$3:$F$34,3,FALSE),"") -> Α.Ο.ΧΡΥΣΟΥΠΟΛΗΣ | N8: 53 41 | Q8: 1 | R8: =UPPER(IF($A$2="R",IF(OR(Q8=1,Q8="a"),P6,IF(OR(Q8=2,Q8="b"),P10,"")),IF(OR(Q8=1,Q8="a"),P6,IF(OR(Q8=2,Q8="b"),P10,"")))) -> ΤΕΡΛΕΜΕΣ
A9: 5 | B9: =4-D9+8 -> 11 | D9: 1 | E9: 0 | F9: =IF(NOT($G9="-"),VLOOKUP($G9,DrawPrep!$A$3:$F$34,2,FALSE),"") -> 0 | G9: 21 | H9: =IF($G9>0,VLOOKUP($G9,DrawPrep!$A$3:$F$34,6,FALSE),0) -> 0 | I9: =IF(Setup!$B$24="#",0,IF($G9>0,VLOOKUP($G9,DrawPrep!$A$3:$F$34,3,FALSE),0)) -> 34931 | J9: =IF($I9>0,VLOOKUP($I9,DrawPrep!$C$3:$F$34,2,FALSE),"bye") -> ΨΑΡΟΥΔΑΚΗΣ ΒΑΣΙΛΗΣ | K9: ΨΑΡΟΥΔΑΚΗΣ | L9: =IF($I9>0,VLOOKUP($I9,DrawPrep!$C$3:$F$34,3,FALSE),"") -> ΜΑΚΕΔΟΝΙΚΟΣ | M9: 1 | N9: =UPPER(IF($A$2="R",IF(OR(M9=1,M9="a"),I9,IF(OR(M9=2,M9="b"),I10,"")),IF(OR(M9=1,M9="a"),K9,IF(OR(M9=2,M9="b"),K10,"")))) -> ΨΑΡΟΥΔΑΚΗΣ | R9: 42 40
A10: 6 | B10: =5-D10+8 -> 11 | C10: 9 | D10: 2 | E10: =IF($B$2>=C10,1,0) -> 1 | F10: =IF(NOT($G10="-"),VLOOKUP($G10,DrawPrep!$A$3:$F$34,2,FALSE),"") ->  | G10: =IF($B$2>=C10,"-",VLOOKUP($B10,Setup!$K$2:$L$33,2,FALSE)) -> - | H10: =IF(NOT($G10="-"),VLOOKUP($G10,DrawPrep!$A$3:$F$34,6,FALSE),0) -> 0 | I10: =IF(Setup!$B$24="#",0,IF(NOT($G10="-"),VLOOKUP($G10,DrawPrep!$A$3:$F$34,3,FALSE),0)) -> 0 | J10: =IF($I10>0,VLOOKUP($I10,DrawPrep!$C$3:$F$34,2,FALSE),"bye") -> bye | L10: =IF($I10>0,VLOOKUP($I10,DrawPrep!$C$3:$F$34,3,FALSE),"") ->  | O10: 2 | P10: =UPPER(IF($A$2="R",IF(OR(O10=1,O10="a"),N9,IF(OR(O10=2,O10="b"),N11,"")),IF(OR(O10=1,O10="a"),N9,IF(OR(O10=2,O10="b"),N11,"")))) -> ΚΟΥΣΟΥΝΑΔΗΣ
A11: 7 | B11: =6-D11+8 -> 11 | C11: =B12 -> 6 | D11: 3 | E11: =IF($B$2>=C11,1,0) -> 1 | F11: =IF(NOT($G11="-"),VLOOKUP($G11,DrawPrep!$A$3:$F$34,2,FALSE),"") ->  | G11: =IF($B$2>=C11,"-",VLOOKUP($B11,Setup!$K$2:$L$33,2,FALSE)) -> - | H11: =IF(NOT($G11="-"),VLOOKUP($G11,DrawPrep!$A$3:$F$34,6,FALSE),0) -> 0 | I11: =IF(Setup!$B$24="#",0,IF(NOT($G11="-"),VLOOKUP($G11,DrawPrep!$A$3:$F$34,3,FALSE),0)) -> 0 | J11: =IF($I11>0,VLOOKUP($I11,DrawPrep!$C$3:$F$34,2,FALSE),"bye") -> bye | L11: =IF($I11>0,VLOOKUP($I11,DrawPrep!$C$3:$F$34,3,FALSE),"") ->  | M11: 2 | N11: =UPPER(IF($A$2="R",IF(OR(M11=1,M11="a"),I11,IF(OR(M11=2,M11="b"),I12,"")),IF(OR(M11=1,M11="a"),K11,IF(OR(M11=2,M11="b"),K12,"")))) -> ΚΟΥΣΟΥΝΑΔΗΣ | P11: 40 40
A12: 8 | B12: =VALUE(Setup!E5) -> 6 | D12: 3 | E12: 0 | F12: =IF(NOT($G12="-"),VLOOKUP($G12,DrawPrep!$A$3:$F$34,2,FALSE),"") -> 0 | G12: 7 | H12: =IF($G12>0,VLOOKUP($G12,DrawPrep!$A$3:$F$34,6,FALSE),0) -> 8 | I12: =IF(Setup!$B$24="#",0,IF($G12>0,VLOOKUP($G12,DrawPrep!$A$3:$F$34,3,FALSE),0)) -> 29066 | J12: =IF($I12>0,VLOOKUP($I12,DrawPrep!$C$3:$F$34,2,FALSE),"bye") -> ΚΟΥΣΟΥΝΑΔΗΣ ΘΕΟΔΩΡΟΣ | K12: ΚΟΥΣΟΥΝΑΔΗΣ | L12: =IF($I12>0,VLOOKUP($I12,DrawPrep!$C$3:$F$34,3,FALSE),"") -> ΜΑΚΕΔΟΝΙΚΟΣ | S12: 1 | T12: =UPPER(IF($A$2="R",IF(OR(S12=1,S12="a"),R8,IF(OR(S12=2,S12="b"),R16,"")),IF(OR(S12=1,S12="a"),R8,IF(OR(S12=2,S12="b"),R16,"")))) -> ΤΕΡΛΕΜΕΣ
A13: 9 | B13: =VALUE(Setup!E2) -> 4 | D13: 3 | E13: 0 | F13: =IF(NOT($G13="-"),VLOOKUP($G13,DrawPrep!$A$3:$F$34,2,FALSE),"") -> 0 | G13: 3 | H13: =IF($G13>0,VLOOKUP($G13,DrawPrep!$A$3:$F$34,6,FALSE),0) -> 15.5 | I13: =IF(Setup!$B$24="#",0,IF($G13>0,VLOOKUP($G13,DrawPrep!$A$3:$F$34,3,FALSE),0)) -> 31428 | J13: =IF($I13>0,VLOOKUP($I13,DrawPrep!$C$3:$F$34,2,FALSE),"bye") -> ΚΩΣΤΙΔΗΣ ΗΛΙΑΣ | K13: ΚΩΣΤΙΔΗΣ | L13: =IF($I13>0,VLOOKUP($I13,DrawPrep!$C$3:$F$34,3,FALSE),"") -> ΣΕΡΑΪΚΟΣ Ο.Α | M13: 1 | N13: =UPPER(IF($A$2="R",IF(OR(M13=1,M13="a"),I13,IF(OR(M13=2,M13="b"),I14,"")),IF(OR(M13=1,M13="a"),K13,IF(OR(M13=2,M13="b"),K14,"")))) -> ΚΩΣΤΙΔΗΣ | T13: 64 61
A14: 10 | B14: =7-D14+8 -> 11 | C14: =B13 -> 4 | D14: 4 | E14: =IF($B$2>=C14,1,0) -> 1 | F14: =IF(NOT($G14="-"),VLOOKUP($G14,DrawPrep!$A$3:$F$34,2,FALSE),"") ->  | G14: =IF($B$2>=C14,"-",VLOOKUP($B14,Setup!$K$2:$L$33,2,FALSE)) -> - | H14: =IF(NOT($G14="-"),VLOOKUP($G14,DrawPrep!$A$3:$F$34,6,FALSE),0) -> 0 | I14: =IF(Setup!$B$24="#",0,IF(NOT($G14="-"),VLOOKUP($G14,DrawPrep!$A$3:$F$34,3,FALSE),0)) -> 0 | J14: =IF($I14>0,VLOOKUP($I14,DrawPrep!$C$3:$F$34,2,FALSE),"bye") -> bye | L14: =IF($I14>0,VLOOKUP($I14,DrawPrep!$C$3:$F$34,3,FALSE),"") ->  | O14: 1 | P14: =UPPER(IF($A$2="R",IF(OR(O14=1,O14="a"),N13,IF(OR(O14=2,O14="b"),N15,"")),IF(OR(O14=1,O14="a"),N13,IF(OR(O14=2,O14="b"),N15,"")))) -> ΚΩΣΤΙΔΗΣ
A15: 11 | B15: =8-D15+8 -> 12 | D15: 4 | E15: 0 | F15: =IF(NOT($G15="-"),VLOOKUP($G15,DrawPrep!$A$3:$F$34,2,FALSE),"") -> 0 | G15: 16 | H15: =IF($G15>0,VLOOKUP($G15,DrawPrep!$A$3:$F$34,6,FALSE),0) -> 0 | I15: =IF(Setup!$B$24="#",0,IF($G15>0,VLOOKUP($G15,DrawPrep!$A$3:$F$34,3,FALSE),0)) -> 34118 | J15: =IF($I15>0,VLOOKUP($I15,DrawPrep!$C$3:$F$34,2,FALSE),"bye") -> ΚΗΤΖΙΔΗΣ ΣΠΥΡΙΔΩΝΑΣ | K15: ΚΗΤΖΙΔΗΣ | L15: =IF($I15>0,VLOOKUP($I15,DrawPrep!$C$3:$F$34,3,FALSE),"") -> Πανθρακικός ΟΑ Κομοτην | M15: 2 | N15: =UPPER(IF($A$2="R",IF(OR(M15=1,M15="a"),I15,IF(OR(M15=2,M15="b"),I16,"")),IF(OR(M15=1,M15="a"),K15,IF(OR(M15=2,M15="b"),K16,"")))) -> ΠΑΠΑΧΑΡΑΛΑΜΠΙΔΗΣ | P15: 40 41
A16: 12 | B16: =9-D16+8 -> 13 | C16: 13 | D16: 4 | E16: =IF($B$2>=C16,1,0) -> 0 | F16: =IF(NOT($G16="-"),VLOOKUP($G16,DrawPrep!$A$3:$F$34,2,FALSE),"") -> 0 | G16: 13 | H16: =IF(NOT($G16="-"),VLOOKUP($G16,DrawPrep!$A$3:$F$34,6,FALSE),0) -> 3.5 | I16: =IF(Setup!$B$24="#",0,IF(NOT($G16="-"),VLOOKUP($G16,DrawPrep!$A$3:$F$34,3,FALSE),0)) -> 31344 | J16: =IF($I16>0,VLOOKUP($I16,DrawPrep!$C$3:$F$34,2,FALSE),"bye") -> ΠΑΠΑΧΑΡΑΛΑΜΠΙΔΗΣ ΠΑΡΑΣΚΕΥΑΣ | K16: ΠΑΠΑΧΑΡΑΛΑΜΠΙΔΗΣ | L16: =IF($I16>0,VLOOKUP($I16,DrawPrep!$C$3:$F$34,3,FALSE),"") -> ΤΙΤΑΝΕΣ-ΝΕΑΣ ΠΕΡΑΜΟΥ | N16: 42 40 | Q16: 2 | R16: =UPPER(IF($A$2="R",IF(OR(Q16=1,Q16="a"),P14,IF(OR(Q16=2,Q16="b"),P18,"")),IF(OR(Q16=1,Q16="a"),P14,IF(OR(Q16=2,Q16="b"),P18,"")))) -> ΠΑΠΑΝΙΚΟΣ
A17: 13 | B17: =10-D17+8 -> 14 | D17: 4 | E17: 0 | F17: =IF(NOT($G17="-"),VLOOKUP($G17,DrawPrep!$A$3:$F$34,2,FALSE),"") -> 0 | G17: 17 | H17: =IF($G17>0,VLOOKUP($G17,DrawPrep!$A$3:$F$34,6,FALSE),0) -> 0 | I17: =IF(Setup!$B$24="#",0,IF($G17>0,VLOOKUP($G17,DrawPrep!$A$3:$F$34,3,FALSE),0)) -> 34765 | J17: =IF($I17>0,VLOOKUP($I17,DrawPrep!$C$3:$F$34,2,FALSE),"bye") -> ΙΑΚΩΒΑΚΗΣ ΤΗΛΕΜΑΧΟΣ | K17: ΙΑΚΩΒΑΚΗΣ | L17: =IF($I17>0,VLOOKUP($I17,DrawPrep!$C$3:$F$34,3,FALSE),"") -> Α.Ο.Α.ΑΛΕΞΑΝ/ΛΗΣ | M17: 1 | N17: =UPPER(IF($A$2="R",IF(OR(M17=1,M17="a"),I17,IF(OR(M17=2,M17="b"),I18,"")),IF(OR(M17=1,M17="a"),K17,IF(OR(M17=2,M17="b"),K18,"")))) -> ΙΑΚΩΒΑΚΗΣ | R17: 40 42
A18: 14 | B18: =11-D18+8 -> 14 | C18: 11 | D18: 5 | E18: =IF($B$2>=C18,1,0) -> 1 | F18: =IF(NOT($G18="-"),VLOOKUP($G18,DrawPrep!$A$3:$F$34,2,FALSE),"") ->  | G18: =IF($B$2>=C18,"-",VLOOKUP($B18,Setup!$K$2:$L$33,2,FALSE)) -> - | H18: =IF(NOT($G18="-"),VLOOKUP($G18,DrawPrep!$A$3:$F$34,6,FALSE),0) -> 0 | I18: =IF(Setup!$B$24="#",0,IF(NOT($G18="-"),VLOOKUP($G18,DrawPrep!$A$3:$F$34,3,FALSE),0)) -> 0 | J18: =IF($I18>0,VLOOKUP($I18,DrawPrep!$C$3:$F$34,2,FALSE),"bye") -> bye | L18: =IF($I18>0,VLOOKUP($I18,DrawPrep!$C$3:$F$34,3,FALSE),"") ->  | O18: 2 | P18: =UPPER(IF($A$2="R",IF(OR(O18=1,O18="a"),N17,IF(OR(O18=2,O18="b"),N19,"")),IF(OR(O18=1,O18="a"),N17,IF(OR(O18=2,O18="b"),N19,"")))) -> ΠΑΠΑΝΙΚΟΣ
A19: 15 | B19: =12-D19+8 -> 14 | C19: =B20 -> 7 | D19: 6 | E19: =IF($B$2>=C19,1,0) -> 1 | F19: =IF(NOT($G19="-"),VLOOKUP($G19,DrawPrep!$A$3:$F$34,2,FALSE),"") ->  | G19: =IF($B$2>=C19,"-",VLOOKUP($B19,Setup!$K$2:$L$33,2,FALSE)) -> - | H19: =IF(NOT($G19="-"),VLOOKUP($G19,DrawPrep!$A$3:$F$34,6,FALSE),0) -> 0 | I19: =IF(Setup!$B$24="#",0,IF(NOT($G19="-"),VLOOKUP($G19,DrawPrep!$A$3:$F$34,3,FALSE),0)) -> 0 | J19: =IF($I19>0,VLOOKUP($I19,DrawPrep!$C$3:$F$34,2,FALSE),"bye") -> bye | L19: =IF($I19>0,VLOOKUP($I19,DrawPrep!$C$3:$F$34,3,FALSE),"") ->  | M19: 2 | N19: =UPPER(IF($A$2="R",IF(OR(M19=1,M19="a"),I19,IF(OR(M19=2,M19="b"),I20,"")),IF(OR(M19=1,M19="a"),K19,IF(OR(M19=2,M19="b"),K20,"")))) -> ΠΑΠΑΝΙΚΟΣ | P19: 40 40
A20: 16 | B20: =VALUE(Setup!E6) -> 7 | D20: 6 | E20: 0 | F20: =IF(NOT($G20="-"),VLOOKUP($G20,DrawPrep!$A$3:$F$34,2,FALSE),"") -> 0 | G20: 5 | H20: =IF($G20>0,VLOOKUP($G20,DrawPrep!$A$3:$F$34,6,FALSE),0) -> 15.5 | I20: =IF(Setup!$B$24="#",0,IF($G20>0,VLOOKUP($G20,DrawPrep!$A$3:$F$34,3,FALSE),0)) -> 31426 | J20: =IF($I20>0,VLOOKUP($I20,DrawPrep!$C$3:$F$34,2,FALSE),"bye") -> ΠΑΠΑΝΙΚΟΣ ΑΛΚΙΒΙΑΔΗΣ | K20: ΠΑΠΑΝΙΚΟΣ | L20: =IF($I20>0,VLOOKUP($I20,DrawPrep!$C$3:$F$34,3,FALSE),"") -> Σ.Α.ΣΕΡΡΩΝ | S20: 2 | T20: =UPPER(IF($A$2="R",IF(OR(S20=1,S20="a"),T12,IF(OR(S20=2,S20="b"),T28,"")),IF(OR(S20=1,S20="a"),T12,IF(OR(S20=2,S20="b"),T28,"")))) -> ΠΑΦΗΣ
A21: 17 | B21: =VALUE(Setup!E7) -> 5 | D21: 6 | E21: 0 | F21: =IF(NOT($G21="-"),VLOOKUP($G21,DrawPrep!$A$3:$F$34,2,FALSE),"") -> 0 | G21: 8 | H21: =IF($G21>0,VLOOKUP($G21,DrawPrep!$A$3:$F$34,6,FALSE),0) -> 5.5 | I21: =IF(Setup!$B$24="#",0,IF($G21>0,VLOOKUP($G21,DrawPrep!$A$3:$F$34,3,FALSE),0)) -> 30767 | J21: =IF($I21>0,VLOOKUP($I21,DrawPrep!$C$3:$F$34,2,FALSE),"bye") -> ΤΡΙΑΝΤΑΦΥΛΛΙΔΗΣ ΑΒΡΑΑΜ | K21: ΤΡΙΑΝΤΑΦΥΛΛΙΔΗΣ | L21: =IF($I21>0,VLOOKUP($I21,DrawPrep!$C$3:$F$34,3,FALSE),"") -> Πανθρακικός ΟΑ Κομοτην | M21: 1 | N21: =UPPER(IF($A$2="R",IF(OR(M21=1,M21="a"),I21,IF(OR(M21=2,M21="b"),I22,"")),IF(OR(M21=1,M21="a"),K21,IF(OR(M21=2,M21="b"),K22,"")))) -> ΤΡΙΑΝΤΑΦΥΛΛΙΔΗΣ | T21: 64 63
A22: 18 | B22: =13-D22+8 -> 14 | C22: =B21 -> 5 | D22: 7 | E22: =IF($B$2>=C22,1,0) -> 1 | F22: =IF(NOT($G22="-"),VLOOKUP($G22,DrawPrep!$A$3:$F$34,2,FALSE),"") ->  | G22: =IF($B$2>=C22,"-",VLOOKUP($B22,Setup!$K$2:$L$33,2,FALSE)) -> - | H22: =IF(NOT($G22="-"),VLOOKUP($G22,DrawPrep!$A$3:$F$34,6,FALSE),0) -> 0 | I22: =IF(Setup!$B$24="#",0,IF(NOT($G22="-"),VLOOKUP($G22,DrawPrep!$A$3:$F$34,3,FALSE),0)) -> 0 | J22: =IF($I22>0,VLOOKUP($I22,DrawPrep!$C$3:$F$34,2,FALSE),"bye") -> bye | L22: =IF($I22>0,VLOOKUP($I22,DrawPrep!$C$3:$F$34,3,FALSE),"") ->  | O22: 1 | P22: =UPPER(IF($A$2="R",IF(OR(O22=1,O22="a"),N21,IF(OR(O22=2,O22="b"),N23,"")),IF(OR(O22=1,O22="a"),N21,IF(OR(O22=2,O22="b"),N23,"")))) -> ΤΡΙΑΝΤΑΦΥΛΛΙΔΗΣ
A23: 19 | B23: =14-D23+8 -> 15 | D23: 7 | E23: 0 | F23: =IF(NOT($G23="-"),VLOOKUP($G23,DrawPrep!$A$3:$F$34,2,FALSE),"") -> 0 | G23: 14 | H23: =IF($G23>0,VLOOKUP($G23,DrawPrep!$A$3:$F$34,6,FALSE),0) -> 1.5 | I23: =IF(Setup!$B$24="#",0,IF($G23>0,VLOOKUP($G23,DrawPrep!$A$3:$F$34,3,FALSE),0)) -> 35176 | J23: =IF($I23>0,VLOOKUP($I23,DrawPrep!$C$3:$F$34,2,FALSE),"bye") -> ΖΕΡΒΙΔΗΣ ΑΝΤΩΝΙΟΣ | K23: ΖΕΡΒΙΔΗΣ | L23: =IF($I23>0,VLOOKUP($I23,DrawPrep!$C$3:$F$34,3,FALSE),"") -> Σ.Α.ΣΕΡΡΩΝ | M23: 2 | N23: =UPPER(IF($A$2="R",IF(OR(M23=1,M23="a"),I23,IF(OR(M23=2,M23="b"),I24,"")),IF(OR(M23=1,M23="a"),K23,IF(OR(M23=2,M23="b"),K24,"")))) -> ΧΑΡΑΛΑΜΠΙΔΗΣ | P23: 40 53
A24: 20 | B24: =15-D24+8 -> 16 | C24: 12 | D24: 7 | E24: =IF($B$2>=C24,1,0) -> 0 | F24: =IF(NOT($G24="-"),VLOOKUP($G24,DrawPrep!$A$3:$F$34,2,FALSE),"") -> 0 | G24: 11 | H24: =IF(NOT($G24="-"),VLOOKUP($G24,DrawPrep!$A$3:$F$34,6,FALSE),0) -> 4 | I24: =IF(Setup!$B$24="#",0,IF(NOT($G24="-"),VLOOKUP($G24,DrawPrep!$A$3:$F$34,3,FALSE),0)) -> 34543 | J24: =IF($I24>0,VLOOKUP($I24,DrawPrep!$C$3:$F$34,2,FALSE),"bye") -> ΧΑΡΑΛΑΜΠΙΔΗΣ ΘΕΟΦΙΛΟΣ | K24: ΧΑΡΑΛΑΜΠΙΔΗΣ | L24: =IF($I24>0,VLOOKUP($I24,DrawPrep!$C$3:$F$34,3,FALSE),"") -> ΤΙΤΑΝΕΣ-ΝΕΑΣ ΠΕΡΑΜΟΥ | N24: 41 42 | Q24: 2 | R24: =UPPER(IF($A$2="R",IF(OR(Q24=1,Q24="a"),P22,IF(OR(Q24=2,Q24="b"),P26,"")),IF(OR(Q24=1,Q24="a"),P22,IF(OR(Q24=2,Q24="b"),P26,"")))) -> ΤΣΑΤΣΟΥΛΗΣ
A25: 21 | B25: =16-D25+8 -> 17 | D25: 7 | E25: 0 | F25: =IF(NOT($G25="-"),VLOOKUP($G25,DrawPrep!$A$3:$F$34,2,FALSE),"") -> 0 | G25: 15 | H25: =IF($G25>0,VLOOKUP($G25,DrawPrep!$A$3:$F$34,6,FALSE),0) -> 1.5 | I25: =IF(Setup!$B$24="#",0,IF($G25>0,VLOOKUP($G25,DrawPrep!$A$3:$F$34,3,FALSE),0)) -> 33472 | J25: =IF($I25>0,VLOOKUP($I25,DrawPrep!$C$3:$F$34,2,FALSE),"bye") -> ΠΑΠΑΝΔΡΟΥΔΗΣ ΜΙΛΤΙΑΔΗΣ | K25: ΠΑΠΑΝΔΡΟΥΔΗΣ | L25: =IF($I25>0,VLOOKUP($I25,DrawPrep!$C$3:$F$34,3,FALSE),"") -> Α.Ο.Α.ΑΛΕΞΑΝ/ΛΗΣ | M25: 2 | N25: =UPPER(IF($A$2="R",IF(OR(M25=1,M25="a"),I25,IF(OR(M25=2,M25="b"),I26,"")),IF(OR(M25=1,M25="a"),K25,IF(OR(M25=2,M25="b"),K26,"")))) -> ΚΑΛΠΑΤΖΙΔΗΣ | R25: 53 40
A26: 22 | B26: =17-D26+8 -> 18 | C26: 14 | D26: 7 | E26: =IF($B$2>=C26,1,0) -> 0 | F26: =IF(NOT($G26="-"),VLOOKUP($G26,DrawPrep!$A$3:$F$34,2,FALSE),"") -> 0 | G26: 9 | H26: =IF(NOT($G26="-"),VLOOKUP($G26,DrawPrep!$A$3:$F$34,6,FALSE),0) -> 5.5 | I26: =IF(Setup!$B$24="#",0,IF(NOT($G26="-"),VLOOKUP($G26,DrawPrep!$A$3:$F$34,3,FALSE),0)) -> 33107 | J26: =IF($I26>0,VLOOKUP($I26,DrawPrep!$C$3:$F$34,2,FALSE),"bye") -> ΚΑΛΠΑΤΖΙΔΗΣ ΗΡΑΚΛΗΣ | K26: ΚΑΛΠΑΤΖΙΔΗΣ | L26: =IF($I26>0,VLOOKUP($I26,DrawPrep!$C$3:$F$34,3,FALSE),"") -> ΣΕΡΑΪΚΟΣ Ο.Α | N26: 42 40 | O26: 2 | P26: =UPPER(IF($A$2="R",IF(OR(O26=1,O26="a"),N25,IF(OR(O26=2,O26="b"),N27,"")),IF(OR(O26=1,O26="a"),N25,IF(OR(O26=2,O26="b"),N27,"")))) -> ΤΣΑΤΣΟΥΛΗΣ
A27: 23 | B27: =18-D27+8 -> 18 | C27: =B28 -> 3 | D27: 8 | E27: =IF($B$2>=C27,1,0) -> 1 | F27: =IF(NOT($G27="-"),VLOOKUP($G27,DrawPrep!$A$3:$F$34,2,FALSE),"") ->  | G27: =IF($B$2>=C27,"-",VLOOKUP($B27,Setup!$K$2:$L$33,2,FALSE)) -> - | H27: =IF(NOT($G27="-"),VLOOKUP($G27,DrawPrep!$A$3:$F$34,6,FALSE),0) -> 0 | I27: =IF(Setup!$B$24="#",0,IF(NOT($G27="-"),VLOOKUP($G27,DrawPrep!$A$3:$F$34,3,FALSE),0)) -> 0 | J27: =IF($I27>0,VLOOKUP($I27,DrawPrep!$C$3:$F$34,2,FALSE),"bye") -> bye | L27: =IF($I27>0,VLOOKUP($I27,DrawPrep!$C$3:$F$34,3,FALSE),"") ->  | M27: 2 | N27: =UPPER(IF($A$2="R",IF(OR(M27=1,M27="a"),I27,IF(OR(M27=2,M27="b"),I28,"")),IF(OR(M27=1,M27="a"),K27,IF(OR(M27=2,M27="b"),K28,"")))) -> ΤΣΑΤΣΟΥΛΗΣ | P27: 53 42
A28: 24 | B28: =VALUE(Setup!E3) -> 3 | D28: 8 | E28: 0 | F28: =IF(NOT($G28="-"),VLOOKUP($G28,DrawPrep!$A$3:$F$34,2,FALSE),"") -> 0 | G28: 4 | H28: =IF($G28>0,VLOOKUP($G28,DrawPrep!$A$3:$F$34,6,FALSE),0) -> 15.5 | I28: =IF(Setup!$B$24="#",0,IF($G28>0,VLOOKUP($G28,DrawPrep!$A$3:$F$34,3,FALSE),0)) -> 33325 | J28: =IF($I28>0,VLOOKUP($I28,DrawPrep!$C$3:$F$34,2,FALSE),"bye") -> ΤΣΑΤΣΟΥΛΗΣ ΑΘΑΝΑΣΙΟΣ | K28: ΤΣΑΤΣΟΥΛΗΣ | L28: =IF($I28>0,VLOOKUP($I28,DrawPrep!$C$3:$F$34,3,FALSE),"") -> Ο.Α.ΞΑΝΘΗΣ | S28: 2 | T28: =UPPER(IF($A$2="R",IF(OR(S28=1,S28="a"),R24,IF(OR(S28=2,S28="b"),R32,"")),IF(OR(S28=1,S28="a"),R24,IF(OR(S28=2,S28="b"),R32,"")))) -> ΠΑΦΗΣ
A29: 25 | B29: =VALUE(Setup!E8) -> 8 | D29: 8 | E29: 0 | F29: =IF(NOT($G29="-"),VLOOKUP($G29,DrawPrep!$A$3:$F$34,2,FALSE),"") -> 0 | G29: 6 | H29: =IF($G29>0,VLOOKUP($G29,DrawPrep!$A$3:$F$34,6,FALSE),0) -> 12.5 | I29: =IF(Setup!$B$24="#",0,IF($G29>0,VLOOKUP($G29,DrawPrep!$A$3:$F$34,3,FALSE),0)) -> 33289 | J29: =IF($I29>0,VLOOKUP($I29,DrawPrep!$C$3:$F$34,2,FALSE),"bye") -> ΒΛΑΧΟΣ ΚΩΝ/ΝΟΣ | K29: ΒΛΑΧΟΣ | L29: =IF($I29>0,VLOOKUP($I29,DrawPrep!$C$3:$F$34,3,FALSE),"") -> Σ.Α.ΣΕΡΡΩΝ | M29: 1 | N29: =UPPER(IF($A$2="R",IF(OR(M29=1,M29="a"),I29,IF(OR(M29=2,M29="b"),I30,"")),IF(OR(M29=1,M29="a"),K29,IF(OR(M29=2,M29="b"),K30,"")))) -> ΒΛΑΧΟΣ | T29: 60 60
A30: 26 | B30: =19-D30+8 -> 18 | C30: =B29 -> 8 | D30: 9 | E30: =IF($B$2>=C30,1,0) -> 1 | F30: =IF(NOT($G30="-"),VLOOKUP($G30,DrawPrep!$A$3:$F$34,2,FALSE),"") ->  | G30: =IF($B$2>=C30,"-",VLOOKUP($B30,Setup!$K$2:$L$33,2,FALSE)) -> - | H30: =IF(NOT($G30="-"),VLOOKUP($G30,DrawPrep!$A$3:$F$34,6,FALSE),0) -> 0 | I30: =IF(Setup!$B$24="#",0,IF(NOT($G30="-"),VLOOKUP($G30,DrawPrep!$A$3:$F$34,3,FALSE),0)) -> 0 | J30: =IF($I30>0,VLOOKUP($I30,DrawPrep!$C$3:$F$34,2,FALSE),"bye") -> bye | L30: =IF($I30>0,VLOOKUP($I30,DrawPrep!$C$3:$F$34,3,FALSE),"") ->  | O30: 2 | P30: =UPPER(IF($A$2="R",IF(OR(O30=1,O30="a"),N29,IF(OR(O30=2,O30="b"),N31,"")),IF(OR(O30=1,O30="a"),N29,IF(OR(O30=2,O30="b"),N31,"")))) -> ΒΑΣΙΛΕΙΑΔΗΣ
A31: 27 | B31: =20-D31+8 -> 19 | D31: 9 | E31: 0 | F31: =IF(NOT($G31="-"),VLOOKUP($G31,DrawPrep!$A$3:$F$34,2,FALSE),"") -> 0 | G31: 10 | H31: =IF($G31>0,VLOOKUP($G31,DrawPrep!$A$3:$F$34,6,FALSE),0) -> 4.5 | I31: =IF(Setup!$B$24="#",0,IF($G31>0,VLOOKUP($G31,DrawPrep!$A$3:$F$34,3,FALSE),0)) -> 33558 | J31: =IF($I31>0,VLOOKUP($I31,DrawPrep!$C$3:$F$34,2,FALSE),"bye") -> ΒΑΣΙΛΕΙΑΔΗΣ ΙΩΑΝΝΗΣ | K31: ΒΑΣΙΛΕΙΑΔΗΣ | L31: =IF($I31>0,VLOOKUP($I31,DrawPrep!$C$3:$F$34,3,FALSE),"") -> Πανθρακικός ΟΑ Κομοτην | M31: 1 | N31: =UPPER(IF($A$2="R",IF(OR(M31=1,M31="a"),I31,IF(OR(M31=2,M31="b"),I32,"")),IF(OR(M31=1,M31="a"),K31,IF(OR(M31=2,M31="b"),K32,"")))) -> ΒΑΣΙΛΕΙΑΔΗΣ | P31: 41 40
A32: 28 | B32: =21-D32+8 -> 19 | C32: 10 | D32: 10 | E32: =IF($B$2>=C32,1,0) -> 1 | F32: =IF(NOT($G32="-"),VLOOKUP($G32,DrawPrep!$A$3:$F$34,2,FALSE),"") ->  | G32: =IF($B$2>=C32,"-",VLOOKUP($B32,Setup!$K$2:$L$33,2,FALSE)) -> - | H32: =IF(NOT($G32="-"),VLOOKUP($G32,DrawPrep!$A$3:$F$34,6,FALSE),0) -> 0 | I32: =IF(Setup!$B$24="#",0,IF(NOT($G32="-"),VLOOKUP($G32,DrawPrep!$A$3:$F$34,3,FALSE),0)) -> 0 | J32: =IF($I32>0,VLOOKUP($I32,DrawPrep!$C$3:$F$34,2,FALSE),"bye") -> bye | L32: =IF($I32>0,VLOOKUP($I32,DrawPrep!$C$3:$F$34,3,FALSE),"") ->  | Q32: 2 | R32: =UPPER(IF($A$2="R",IF(OR(Q32=1,Q32="a"),P30,IF(OR(Q32=2,Q32="b"),P34,"")),IF(OR(Q32=1,Q32="a"),P30,IF(OR(Q32=2,Q32="b"),P34,"")))) -> ΠΑΦΗΣ
A33: 29 | B33: =22-D33+8 -> 20 | D33: 10 | E33: 0 | F33: =IF(NOT($G33="-"),VLOOKUP($G33,DrawPrep!$A$3:$F$34,2,FALSE),"") -> 0 | G33: 12 | H33: =IF($G33>0,VLOOKUP($G33,DrawPrep!$A$3:$F$34,6,FALSE),0) -> 3.5 | I33: =IF(Setup!$B$24="#",0,IF($G33>0,VLOOKUP($G33,DrawPrep!$A$3:$F$34,3,FALSE),0)) -> 33503 | J33: =IF($I33>0,VLOOKUP($I33,DrawPrep!$C$3:$F$34,2,FALSE),"bye") -> ΚΟΒΑΝΙΔΗΣ ΠΕΡΙΚΛΗΣ | K33: ΚΟΒΑΝΙΔΗΣ | L33: =IF($I33>0,VLOOKUP($I33,DrawPrep!$C$3:$F$34,3,FALSE),"") -> Α.Ο.Α.ΑΛΕΞΑΝ/ΛΗΣ | M33: 2 | N33: =UPPER(IF($A$2="R",IF(OR(M33=1,M33="a"),I33,IF(OR(M33=2,M33="b"),I34,"")),IF(OR(M33=1,M33="a"),K33,IF(OR(M33=2,M33="b"),K34,"")))) -> ΧΑΤΖΗΧΡΗΣΤΟΣ | R33: 40 40
A34: 30 | B34: =23-D34+8 -> 21 | C34: 16 | D34: 10 | E34: =IF($B$2>=C34,1,0) -> 0 | F34: =IF(NOT($G34="-"),VLOOKUP($G34,DrawPrep!$A$3:$F$34,2,FALSE),"") -> 0 | G34: 20 | H34: =IF(NOT($G34="-"),VLOOKUP($G34,DrawPrep!$A$3:$F$34,6,FALSE),0) -> 0 | I34: =IF(Setup!$B$24="#",0,IF(NOT($G34="-"),VLOOKUP($G34,DrawPrep!$A$3:$F$34,3,FALSE),0)) -> 35638 | J34: =IF($I34>0,VLOOKUP($I34,DrawPrep!$C$3:$F$34,2,FALSE),"bye") -> ΧΑΤΖΗΧΡΗΣΤΟΣ ΑΛΕΞΑΝΔΡΟΣ | K34: ΧΑΤΖΗΧΡΗΣΤΟΣ | L34: =IF($I34>0,VLOOKUP($I34,DrawPrep!$C$3:$F$34,3,FALSE),"") -> Σ.Α.ΣΕΡΡΩΝ | N34: 41 41 | O34: 2 | P34: =UPPER(IF($A$2="R",IF(OR(O34=1,O34="a"),N33,IF(OR(O34=2,O34="b"),N35,"")),IF(OR(O34=1,O34="a"),N33,IF(OR(O34=2,O34="b"),N35,"")))) -> ΠΑΦΗΣ
A35: 31 | B35: =24-D35+8 -> 21 | C35: =B36 -> 2 | D35: 11 | E35: =IF($B$2>=C35,1,0) -> 1 | F35: =IF(NOT($G35="-"),VLOOKUP($G35,DrawPrep!$A$3:$F$34,2,FALSE),"") ->  | G35: =IF($B$2>=C35,"-",VLOOKUP($B35,Setup!$K$2:$L$33,2,FALSE)) -> - | H35: =IF(NOT($G35="-"),VLOOKUP($G35,DrawPrep!$A$3:$F$34,6,FALSE),0) -> 0 | I35: =IF(Setup!$B$24="#",0,IF(NOT($G35="-"),VLOOKUP($G35,DrawPrep!$A$3:$F$34,3,FALSE),0)) -> 0 | J35: =IF($I35>0,VLOOKUP($I35,DrawPrep!$C$3:$F$34,2,FALSE),"bye") -> bye | L35: =IF($I35>0,VLOOKUP($I35,DrawPrep!$C$3:$F$34,3,FALSE),"") ->  | M35: 2 | N35: =UPPER(IF($A$2="R",IF(OR(M35=1,M35="a"),I35,IF(OR(M35=2,M35="b"),I36,"")),IF(OR(M35=1,M35="a"),K35,IF(OR(M35=2,M35="b"),K36,"")))) -> ΠΑΦΗΣ | P35: 40 40
A36: 32 | B36: 2 | D36: 11 | E36: 0 | F36: =IF(NOT($G36="-"),VLOOKUP($G36,DrawPrep!$A$3:$F$34,2,FALSE),"") -> 0 | G36: =VLOOKUP($B36,Setup!$K$2:$L$33,2,FALSE) -> 2 | H36: =IF($G36>0,VLOOKUP($G36,DrawPrep!$A$3:$F$34,6,FALSE),0) -> 51 | I36: =IF(Setup!$B$24="#",0,IF($G36>0,VLOOKUP($G36,DrawPrep!$A$3:$F$34,3,FALSE),0)) -> 30999 | J36: =IF($I36>0,VLOOKUP($I36,DrawPrep!$C$3:$F$34,2,FALSE),"bye") -> ΠΑΦΗΣ ΚΩΝΣΤΑΝΤΙΝΟΣ | K36: ΠΑΦΗΣ | L36: =IF($I36>0,VLOOKUP($I36,DrawPrep!$C$3:$F$34,3,FALSE),"") -> Πανθρακικός ΟΑ Κομοτην
J39: seeded players
J40: ="1. " & IF(Setup!B19>0,LEFT(DrawPrep!D3,FIND(" ",DrawPrep!D3)+1),"") -> 1. ΤΕΡΛΕΜΕΣ Κ
J41: ="2. " & IF(Setup!B19>1,LEFT(DrawPrep!D4,FIND(" ",DrawPrep!D4)+1),"") -> 2. ΠΑΦΗΣ Κ | R41: επιδιαιτητής
J42: ="3. " & IF(Setup!B19>2,LEFT(DrawPrep!D5,FIND(" ",DrawPrep!D5)+1),"") -> 3. ΚΩΣΤΙΔΗΣ | R42: =Setup!B10 -> ΠΕΤΡΙΔΗΣ ΜΑΝΟΣ
J43: ="4. " & IF(Setup!B19>3,LEFT(DrawPrep!D6,FIND(" ",DrawPrep!D6)+1),"") -> 4. ΤΣΑΤΣΟΥΛΗΣ
J44: ="5. " & IF(Setup!B19>4,LEFT(DrawPrep!D7,FIND(" ",DrawPrep!D7)+1),"") -> 5. ΠΑΠΑΝΙΚΟΣ
J45: ="6. " & IF(Setup!B19>5,LEFT(DrawPrep!D8,FIND(" ",DrawPrep!D8)+1),"") -> 6. ΒΛΑΧΟΣ
J46: ="7. " & IF(Setup!B19>6,LEFT(DrawPrep!D9,FIND(" ",DrawPrep!D9)+1),"") -> 7. ΚΟΥΣΟΥΝΑΔΗΣ Θ
J47: 8.ΤΡΙΑΝΤΑΦΥΛΛΙΔΗΣ
J59: BoldPlayers
J60: =IF(Setup!$B$19>0,LEFT(DrawPrep!D3,FIND(" ",DrawPrep!D3)-1)) -> ΤΕΡΛΕΜΕΣ
J61: =IF(Setup!$B$19>1,LEFT(DrawPrep!D4,FIND(" ",DrawPrep!D4)-1)) -> ΠΑΦΗΣ
J62: =IF(Setup!$B$19>2,LEFT(DrawPrep!D5,FIND(" ",DrawPrep!D5)-1)) -> ΚΩΣΤΙΔΗΣ
J63: =IF(Setup!$B$19>3,LEFT(DrawPrep!D6,FIND(" ",DrawPrep!D6)-1)) -> ΤΣΑΤΣΟΥΛΗΣ
J64: =IF(Setup!$B$19>4,LEFT(DrawPrep!D7,FIND(" ",DrawPrep!D7)-1)) -> ΠΑΠΑΝΙΚΟΣ
J65: =IF(Setup!$B$19>5,LEFT(DrawPrep!D8,FIND(" ",DrawPrep!D8)-1)) -> ΒΛΑΧΟΣ
J66: =IF(Setup!$B$19>6,LEFT(DrawPrep!D9,FIND(" ",DrawPrep!D9)-1)) -> ΚΟΥΣΟΥΝΑΔΗΣ
J67: =IF(Setup!$B$19>7,LEFT(DrawPrep!D10,FIND(" ",DrawPrep!D10)-1)) -> ΤΡΙΑΝΤΑΦΥΛΛΙΔΗΣ
